{"text_format":"1","workbook":"xlsx","n_sheets":1,"sheets":["Sheet1"],"not_rendered":{"charts":0,"images":0,"macros":1,"external_links":0,"defined_names":0,"comments":0,"pivot_tables":0},"unopened":[],"bounds":{"document_bytes":16777216,"sheet_cells":100000,"rows_first":2000,"rows_last":500,"rows_between":2000,"halvings":0,"cell_chars":16384,"cell_head_chars":4096},"cells_cut":0,"cells_raw":0,"read":"whole","date_system":"1900"}

{"sheet":"Sheet1","index":0,"n_rows":8,"n_cols":21,"rows_kept":8,"cut":false,"hidden":false,"merged":[]}
[]
[]
[null,"http://www.nicotalk.com/thumb_kt/sozai_kt_palsui.gif","http://www.nicotalk.com/thumb_kt/sozai_kt_satori.gif","http://www.nicotalk.com/thumb_kt/sozai_kt_yuuka.gif","http://www.nicotalk.com/thumb_kt/sozai_kt_iku.gif","http://www.nicotalk.com/thumb_kt/sozai_kt_shameimaru.gif","http://www.nicotalk.com/thumb_kt/sozai_kt_daiyousei.gif","http://www.nicotalk.com/thumb_kt/sozai_kt_yukari.gif","http://www.nicotalk.com/thumb_kt/sozai_kt_suwako.gif","http://www.nicotalk.com/thumb_kt/sozai_kt_youmu.gif","http://www.nicotalk.com/thumb_kt/sozai_kt_reisen.gif","http://www.nicotalk.com/thumb_kt/sozai_kt_rumia.gif","http://www.nicotalk.com/thumb_kt/sozai_kt_sanae.gif","http://www.nicotalk.com/thumb_kt/sozai_kt_yuyuko.gif","http://www.nicotalk.com/thumb_kt/sozai_kt_chilno.gif","http://www.nicotalk.com/thumb_kt/sozai_kt_alise.gif","http://www.nicotalk.com/thumb_kt/sozai_kt_reimu.gif","http://www.nicotalk.com/thumb_kt/sozai_kt_remilia.gif","http://www.nicotalk.com/thumb_kt/sozai_kt_sakuya.gif","http://www.nicotalk.com/thumb_kt/sozai_kt_furan.gif","http://www.nicotalk.com/thumb_kt/sozai_kt_marisa.gif"]
[]
[]
[null,{"$f":"IMAGE(B3)","v":""},"","","","","","","","","","","","","","","","","","",""]
[null,"20位","19位","18位","17位","16位","15位","14位","13位","12位","11位","10位","9位","8位","7位","6位","5位","4位","3位","2位","1位"]
[null,"水橋パルスィ","古明地さとり","風見幽香","永江衣玖","射命丸文","大妖精","八雲紫","洩矢諏訪子","魂魄妖夢","鈴仙・優曇華院・イナバ","ルーミア","東風谷早苗","西行寺幽々子","チルノ","アリス・マーガトロイド","博麗霊夢","レミリア・スカーレット","十六夜咲夜","フランドール・スカーレット","霧雨魔理沙"]